{"text_format":"1","workbook":"xlsx","n_sheets":6,"sheets":["Sheet1","District","Organization","APC 4W Guidance Note","Project Sheet","Activity Sheet"],"not_rendered":{"charts":0,"images":3,"macros":1,"external_links":0,"defined_names":0,"comments":0,"pivot_tables":0},"unopened":[],"bounds":{"document_bytes":16777216,"sheet_cells":100000,"rows_first":2000,"rows_last":500,"rows_between":2000,"halvings":0,"cell_chars":16384,"cell_head_chars":4096},"cells_cut":0,"cells_raw":0,"read":"whole","date_system":"1900"}

{"sheet":"Sheet1","index":0,"n_rows":39,"n_cols":28,"rows_kept":39,"cut":false,"hidden":true,"merged":[]}
["Shelter Type of Activity",null,"Shelter Type of Activity","Activity2",null,null,"Type of incident","Organisations",null,null,"target",null,null,null,null,null,"Beneficiary",null,null,null,null,null,null,"Other cluster assistance needed",null,null,null,"Status"]
["Shelter construction",null,"Shelter construction","Shelter construction (materials in-kind) CAT A",null,null,"Natural Disaster IDPs","ACTED",null,null,"All (Men, Women and Children)",null,null,null,null,null,"Conflict affected (in situ)",null,null,null,null,null,null,"WASH",null,null,null,"Planned"]
["Distribution of hardware/materials",null,"Shelter construction","Shelter construction (materials in-kind) CAT B",null,null,"Armed Conflict IDPs","ACF",null,null,"Women",null,null,null,null,null,"Conflict IDPs Newly Displaced (< 12 months displaced)",null,null,null,null,null,null,"Health",null,null,null,"Assessment ongoing"]
["Cash/Vouchers (excluding shelter)",null,"Shelter construction","Shelter construction (Cash for shelter) CAT A",null,null,"Undocumented Returnee","AFGHANAID",null,null,"Men",null,null,null,null,null,"Conflict IDPs >12 months displaced",null,null,null,null,null,null,"Protection",null,null,null,"Assessment completed - Report being prepared"]
["DRR training/awareness",null,"Shelter construction","Shelter construction (Cash for shelter) CAT B",null,null,"Documented Returnee","ARCS",null,null,"Youth (12-18 years old)",null,null,null,null,null,"Communities hosting conflict IDPs",null,null,null,null,null,null,"CCCM",null,null,null,"Completed - Report published"]
["Other (please specify in comments)",null,"Distribution of hardware/materials","Standard Emergency Shelter Package",null,null,"Host family","CAI",null,null,"Children (0 - 12 years old)",null,null,null,null,null,"Natural disaster affected (in situ)",null,null,null,null,null,null,"Education"]
[null,null,"Distribution of hardware/materials","Standard Winterization Package",null,null,"Prolonged IDP","CARE",null,null,"Elderly",null,null,null,null,null,"Natural Disaster IDPs Newly Displaced (< 12 months displaced)",null,null,null,null,null,null,"Food Security and Livelihoods"]
[null,null,"Distribution of hardware/materials","Standard NFI Package",null,null,"Natural Disaster affect pre-2017","CARITAS",null,null,"Persons with disabilities / Victims of armed violence",null,null,null,null,null,"Natural Disaster IDPs >12 months displaced",null,null,null,null,null,null,"Not Applicable"]
[null,null,"Distribution of hardware/materials","Standard Tool Kit",null,null,null,"CHRISTIAN AID",null,null,"Other; please specify in the comments",null,null,null,null,null,"Communities hosting natural disaster IDPs"]
[null,null,"Cash/Vouchers (excluding shelter)","Unconditional/Multi-purpose Cash",null,null,null,"CONCERN",null,null,null,null,null,null,null,null,"At risk / underserved communities with high morbidity / malnutrition / mortality rates"]
[null,null,"Cash/Vouchers (excluding shelter)","Cash for NFIs",null,null,null,"COMMUNITY WORLD SERVICE",null,null,null,null,null,null,null,null,"Very Severely Food Insecure"]
[null,null,"Cash/Vouchers (excluding shelter)","Cash for emergency shelter",null,null,null,"FOCUS",null,null,null,null,null,null,null,null,"Refugees"]
[null,null,"Cash/Vouchers (excluding shelter)","Cash for winterization",null,null,null,"DHSA",null,null,null,null,null,null,null,null,"Documented returnees"]
[null,null,"Cash/Vouchers (excluding shelter)","Cash for rent",null,null,null,"DRC",null,null,null,null,null,null,null,null,"Undocumented returnees"]
[null,null,"DRR training/awareness","Community training",null,null,null,"HRDA",null,null,null,null,null,null,null,null,"GBV survivors"]
[null,null,"DRR training/awareness","Radio",null,null,null,"ICRC"]
[null,null,"DRR training/awareness","Television",null,null,null,"IFRC"]
[null,null,"DRR training/awareness","Posters",null,null,null,"INTERSOS"]
[null,null,"DRR training/awareness","Other (provide details in comments)",null,null,null,"IOM"]
[null,null,null,null,null,null,null,"IRC"]
[null,null,null,null,null,null,null,"ISLAMIC RELIEF"]
[null,null,null,null,null,null,null,"MISSION EAST"]
[null,null,null,null,null,null,null,"MoRRd"]
[null,null,null,null,null,null,null,"MUSLIM HANDS AFGHANISTAN"]
[null,null,null,null,null,null,null,"NAC"]
[null,null,null,null,null,null,null,"NCA"]
[null,null,null,null,null,null,null,"NRC"]
[null,null,null,null,null,null,null,"ORCD"]
[null,null,null,null,null,null,null,"OSCEW"]
[null,null,null,null,null,null,null,"PIN"]
[null,null,null,null,null,null,null,"RELIEF INTERNATIONAL"]
[null,null,null,null,null,null,null,"SHELTER FOR LIFE"]
[null,null,null,null,null,null,null,"SAVE THE CHILDREN"]
[null,null,null,null,null,null,null,"SI"]
[null,null,null,null,null,null,null,"UNHABITAT"]
[null,null,null,null,null,null,null,"UNHCR"]
[null,null,null,null,null,null,null,"UNICEF"]
[null,null,null,null,null,null,null,"WELTHUNGERHILFE"]
[null,null,null,null,null,null,null,"WSTA"]

{"sheet":"District","index":1,"n_rows":399,"n_cols":4,"rows_kept":399,"cut":false,"hidden":true,"merged":[]}
["CSO_PROV_NA_ENG","CSO_DIST_NA_ENG",null,"CSO_PROV_NA_ENG"]
["Kabul","province Center (Kabul )                                                    ",null,"Badakhshan"]
["Kabul","Paghman",null,"Badghis"]
["Kabul","Chahar Asyab",null,"Baghlan"]
["Kabul","Bagrami",null,"Balkh"]
["Kabul","DehSabz                           ",null,"Bamyan"]
["Kabul","Shakar Dara",null,"Daykundi"]
["Kabul","Musahi",null,"Farah"]
["Kabul","Mir Bacha kot",null,"Faryab"]
["Kabul","Khak-e-Jabar",null,"Ghazni"]
["Kabul","Kalakan                   ",null,"Ghor"]
["Kabul","Guldara",null,"Helmand"]
["Kabul","Farza",null,"Herat"]
["Kabul","Estalef",null,"Jawzjan"]
["Kabul","Qara Bagh                  ",null,"Kabul"]
["Kabul","Surubi",null,"Kandahar"]
["Kapisa","province Center (Mahmood Raqi)",null,"Kapisa"]
["Kapisa","Hissa-e-Duwumi Kohistan",null,"Khost"]
["Kapisa","Koh Band",null,"Kunarha"]
["Kapisa","Hissa-e-Awali Kohistan",null,"Kunduz"]
["Kapisa","Nijrab",null,"Laghman"]
["Kapisa","Tagab",null,"Logar"]
["Kapisa","Alasai",null,"Nangarhar"]
["Parwan","province Center (Charikar )",null,"Nimroz"]
["Parwan","Bagram",null,"Nooristan"]
["Parwan","Shinwari",null,"Paktika"]
["Parwan","Sayyid  Khel",null,"Paktya"]
["Parwan","Jabulussaraj   ",null,"Panjsher"]
["Parwan","Salang",null,"Parwan"]
["Parwan","syahgird  ('Ghurband)",null,"Samangan"]
["Parwan","Koh-e- Safi",null,"Sar-e-pul"]
["Parwan","Surkhi  parsa",null,"Takhar"]
["Parwan","Shaykh  Ali",null,"Urozgan"]
["Wardak","province  Center (Maidan Shahr)      ",null,"Wardak"]
["Wardak","Nerkh",null,"Zabul"]
["Wardak","Jalrez"]
["Wardak","Chak-e- Wardak"]
["Wardak","Sayyid Abad"]
["Wardak","Daimir Dad"]
["Wardak","Hissa-e- awali Behsud"]
["Wardak","Jaghatu"]
["Wardak","Markaz-e- Behsud"]
["Logar","province Center(Puli Alam)"]
["Logar","Baraki Barak"]
["Logar","Charkh"]
["Logar","khushi"]
["Logar","Mohammad Agha"]
["Logar","Khar war"]
["Logar","Azra"]
["Nangarhar","province Center (Jalalabad)"]
["Nangarhar","Behsud"]
["Nangarhar","Surkh Rud"]
["Nangarhar","Chapar har"]
["Nangarhar","Kama"]
["Nangarhar","Kuzkunar"]
["Nangarhar","Rodat"]
["Nangarhar","Khugyani"]
["Nangarhar","Bati Kot"]
["Nangarhar","Deh Bala"]
["Nangarhar","Pachir Waagam"]
["Nangarhar","Darah -e- Noor"]
["Nangarhar","Kot"]
["Nangarhar","Goshta"]
["Nangarhar","Achin"]
["Nangarhar","Shinwar"]
["Nangarhar","Muhmand ِِDara"]
["Nangarhar","Lalpoor"]
["Nangarhar","Sher Zad"]
["Nangarhar","Nazyan"]
["Nangarhar","Hesarak"]
["Nangarhar","Dur  Baba"]
["Laghman","province Center (Mehterlam)"]
["Laghman","Qarghayee"]
["Laghman","Alishing"]
["Laghman","Alingar"]
["Laghman","Dawlat Shah"]
["Panjsher","province  Center (Bazarak)"]
["Panjsher","Rukha"]
["Panjsher","Darah"]
["Panjsher","Hissa-e- Awal   (Khinj)"]
["Panjsher","Unaba"]
["Panjsher","Shutul"]
["Panjsher","Paryan"]
["Baghlan","province Center (Pul-i-Khumri)"]
["Baghlan","Dahana-e-Ghuri"]
["Baghlan","Dushi"]
["Baghlan","Nahreen"]
["Baghlan","Baghlan-e- Jadeed"]
["Baghlan","Khinjan"]
["Baghlan","Andarab"]
["Baghlan","Deh  Salah"]
["Baghlan","Khwaja hejran (Jalga )"]
["Baghlan","Burka"]
["Baghlan","Tala Wa Barfak"]
["Baghlan","Pul –e-Hisar"]
["Baghlan","Khost Wa Firing"]
["Baghlan","Gozargah-e- Noor"]
["Baghlan","Firing Wa Gharu"]
["Bamyan","province Center (Bamyan )"]
["Bamyan","Shebar"]
["Bamyan","Saighan"]
["Bamyan","Kahmard"]
["Bamyan","Yakawlang"]
["Bamyan","Panjab"]
["Bamyan","Waras"]
["Ghazni","province Center(Ghazni)"]
["Ghazni","Wali M. Shahid (khugyani)"]
["Ghazni","Khwaja Omari"]
["Ghazni","Waghaz"]
["Ghazni","Deh Yak"]
["Ghazni","Jaghatu"]
["Ghazni","Andar"]
["Ghazni","Zanakhan"]
["Ghazni","Rashidan"]
["Ghazni","Nawur"]
["Ghazni","Qara Bagh"]
["Ghazni","Giro"]
["Ghazni","Ab Band"]
["Ghazni","Jaghuri"]
["Ghazni","Muqur"]
["Ghazni","Malistan"]
["Ghazni","Gelan"]
["Ghazni","Ajristan"]
["Ghazni","Nawa"]
["Paktika","province Center(Sharan)"]
["Paktika","Mata Khan"]
["Paktika","Yosuf Khel"]
["Paktika","Yahya Khel"]
["Paktika","Sar Rawza"]
["Paktika","Omna"]
["Paktika","Zarghun Shahr"]
["Paktika","Gomal"]
["Paktika","Jani Khel"]
["Paktika","Surubi"]
["Paktika","Urgoon"]
["Paktika","Ziruk"]
["Paktika","Nika"]
["Paktika","Barmal"]
["Paktika","Giyan"]
["Paktika","DilaWa Khushamand"]
["Paktika","Wazakhwah"]
["Paktika","Wormamay"]
["Paktika","Turwo"]
["Paktia","province Center(Gardez)"]
["Paktia","Ahmadaba"]
["Paktia","Zurmat"]
["Paktia","Shwak"]
["Paktia","Wuza Zadran"]
["Paktia","Sayyid Karam"]
["Paktia","Jaji"]
["Paktia","Laja Ahmad khel"]
["Paktia","Jani Khel"]
["Paktia","Samkani"]
["Paktia","Dand Patan"]
["Khost","province Center(Khost)"]
["Khost","Manduzay (Esmayel khil)             "]
["Khost","Gurbuz"]
["Khost","Tanay"]
["Khost","Musa khel"]
["Khost","Nadir Shah kot"]
["Khost","Sabari (Yaqubi)"]
["Khost","Tirzayee (Ali Sher )"]
["Khost","Baak"]
["Khost","Qalandar"]
["Khost","Spera"]
["Khost","Shamul"]
["Khost","Jaji Maidan"]
["Kunarha","province Center (Asad Abad)"]
["Kunarha","Mara wara"]
["Kunarha","Watapoor"]
["Kunarha","Narang Wa Badil"]
["Kunarha","Sar Kani"]
["Kunarha","Shigal Wa Sheltan"]
["Kunarha","Dara-e- Pech"]
["Kunarha","Bar Kunar"]
["Kunarha","Sawkai"]
["Kunarha","Khas Kunar   "]
["Kunarha","Ghazi Abad"]
["Kunarha","Dangam"]
["Kunarha","Chapa Dara"]
["Kunarha","Noorgal"]
["Kunarha","Nari"]
["Nooristan","province Center (Paroon)"]
["Nooristan","Waygal"]
["Nooristan","Wama"]
["Nooristan","Noor Gram"]
["Nooristan","Duab"]
["Nooristan","Kamdesh"]
["Nooristan","Mandol"]
["Nooristan","Bargi Matal"]
["Badakhshan","province center (Faiz Abad)"]
["Badakhshan","Argo"]
["Badakhshan","Arghanj Khwah"]
["Badakhshan","Yaftal-e-Sufla"]
["Badakhshan","Khash"]
["Badakhshan","Baharak"]
["Badakhshan","Darayim"]
["Badakhshan","Kohistan"]
["Badakhshan","Yawan"]
["Badakhshan","Jurm"]
["Badakhshan","Tashkan"]
["Badakhshan","Shuhada"]
["Badakhshan","Shahri Buzurg"]
["Badakhshan","Raghistan"]
["Badakhshan","Kishm"]
["Badakhshan","Wardooj"]
["Badakhshan","Tagab"]
["Badakhshan","Yamgan(Girwan)"]
["Badakhshan","Shighnan"]
["Badakhshan","Khwahan"]
["Badakhshan","Kufab"]
["Badakhshan","Darwaz-e- Payin (Mamay)"]
["Badakhshan","Eshkashim"]
["Badakhshan","Shiki"]
["Badakhshan","Zebak"]
["Badakhshan","Kiran Wa Menjan"]
["Badakhshan","Darwaz-e- Bala ( Nesay)"]
["Badakhshan","Wakhan"]
["Takhar","province  Center (Taluqan)"]
["Takhar","Hazar Sumuch"]
["Takhar","Baharak"]
["Takhar","Bangi"]
["Takhar","Chal"]
["Takhar","Namak Ab"]
["Takhar","Kalafgan"]
["Takhar","Farkhar"]
["Takhar","Khwaja Ghar"]
["Takhar","Rustaq"]
["Takhar","Eshkamesh"]
["Takhar","Dashti Qala"]
["Takhar","Warsaj"]
["Takhar","Khwaja Bahawuddin"]
["Takhar","Darqad"]
["Takhar","Chahab"]
["Takhar","Yangi Qala"]
["Kunduz","province Center (Kunduz)"]
["Kunduz","Chahar Darah"]
["Kunduz","Ali Abad"]
["Kunduz","Khan Abad"]
["Kunduz","Hazrati Imam Sahib"]
["Kunduz","Dasht-e- Archi"]
["Kunduz","Qala -e-Zal"]
["Samangan","province Center (Aybak)  "]
["Samangan","Hazrat -e-Sultan"]
["Samangan","Khuram Wa Sarbagh"]
["Samangan","Feroz  Nakhcheer"]
["Samangan","Rui- Do- Ab"]
["Samangan","Dara -e-soof-i-Payin"]
["Samangan","Dara -e-soof-e- Bala"]
["Balkh","province Center (Mazar-e- sharif)"]
["Balkh","Nahri Shahi"]
["Balkh","Dehdadi"]
["Balkh","Char kent"]
["Balkh","Marmul"]
["Balkh","Balkh"]
["Balkh","Sholgara"]
["Balkh","Chimtal"]
["Balkh","Dawlat Abad"]
["Balkh","Khulm"]
["Balkh","Char Bolak"]
["Balkh","Shortepa"]
["Balkh","Kaldar"]
["Balkh","Kishindeh"]
["Balkh","Zari"]
["Sar-e-pul","province Center (Sar-e-Pul)"]
["Sar-e-pul","Sayyad"]
["Sar-e-pul","Kohistanat"]
["Sar-e-pul","Sozma Qala"]
["Sar-e-pul","Sancharak"]
["Sar-e-pul","Gosfandi"]
["Sar-e-pul","Balkhab"]
["Ghor","province  Center (Chighcheran)"]
["Ghor","Duleena"]
["Ghor","Dawlatyar"]
["Ghor","Char Sada"]
["Ghor","Pasaband"]
["Ghor","Shahrak"]
["Ghor","Lal Wa SarJangal"]
["Ghor","Taywara"]
["Ghor","Tulak"]
["Ghor","Saghar"]
["Daykundi","province Center (Nili)"]
["Daykundi","Shahristan"]
["Daykundi","Ishterlai"]
["Daykundi","Khedir"]
["Daykundi","kiti"]
["Daykundi","Miramor"]
["Daykundi","Sang -e- Takht"]
["Daykundi","Kejran"]
["Urozgan","province Center (Tirinkot)"]
["Urozgan","Dehraoud"]
["Urozgan","Chora"]
["Urozgan","Shahidhassas"]
["Urozgan","Khas Urozgan"]
["Urozgan","Gizab"]
["Zabul","province Center (Qalat)"]
["Zabul","Tarang Wa Jaldak"]
["Zabul","Shinkai"]
["Zabul","Mizan"]
["Zabul","Arghandab"]
["Zabul","Shah Joi"]
["Zabul","Daichopan"]
["Zabul","Atghar"]
["Zabul","Naw Bahar"]
["Zabul","Shemel Zayi"]
["Zabul","Kakar (khak-e-afghan )"]
["Kandahar","province Center (Kandahar)"]
["Kandahar","Arghandab"]
["Kandahar","Daman"]
["Kandahar","Panjwayee"]
["Kandahar","Zhire"]
["Kandahar","Shah Wali Kot"]
["Kandahar","Khakrez"]
["Kandahar","Arghistan"]
["Kandahar","Ghorak"]
["Kandahar","Maiwand"]
["Kandahar","Spin Boldak"]
["Kandahar","Nesh"]
["Kandahar","Miyanishin"]
["Kandahar","Shorabak"]
["Kandahar","Maruf"]
["Kandahar","Reg"]
["Jawzjan","province Center (Sheberghan)"]
["Jawzjan","Khwaja Dukoh"]
["Jawzjan","Khanaqa"]
["Jawzjan","Mingajik"]
["Jawzjan","Qush Tepa"]
["Jawzjan","Khamyab"]
["Jawzjan","Aqchah"]
["Jawzjan","Faizabad                 "]
["Jawzjan","Mardyan"]
["Jawzjan","Qarqin"]
["Jawzjan","Darzab"]
["Faryab","province Center (Maimana)"]
["Faryab","Pashtun kot"]
["Faryab","Khwaja Sabz Posh i Wali"]
["Faryab","Almar"]
["Faryab","Bilchiragh"]
["Faryab","Shirin Tagab"]
["Faryab","Qaisar"]
["Faryab","Gurziwan"]
["Faryab","Dawlat Abad"]
["Faryab","Kohistan"]
["Faryab","Qaram Qul"]
["Faryab","Qurghan"]
["Faryab","Andkhoy"]
["Faryab","Khani Charbagh"]
["Helmand","province Center (Lashkargah)"]
["Helmand","Nad Ali"]
["Helmand","Nawa-i- Barikzayi"]
["Helmand","Nahr-i- Saraj"]
["Helmand","Washer"]
["Helmand","Garm Ser"]
["Helmand","Nawzad"]
["Helmand","Sangin             "]
["Helmand","Musa Qala"]
["Helmand","Kajaki"]
["Helmand","Reg-i-Khan Nishin"]
["Helmand","Baghran         "]
["Helmand","Dishu"]
["Badghis","province Center  (Qala-i- Now)"]
["Badghis","Ab Kamari"]
["Badghis","Muqur"]
["Badghis","Qadis"]
["Badghis","Murghab (Bala Murghab)"]
["Badghis","Jawand"]
["Badghis","Ghormach"]
["Hirat","province  Center (Herat)"]
["Hirat","Enjil"]
["Hirat","Guzera (Nizam-i- Shahid)"]
["Hirat","Karrukh"]
["Hirat","Zendahjan"]
["Hirat","Pashtun Zarghun"]
["Hirat","Kushk (Rubat-i-Sangi)"]
["Hirat","Gulran"]
["Hirat","Adraskan"]
["Hirat","Kushk-i- Kuhna"]
["Hirat","Ghoryan"]
["Hirat","Obe"]
["Hirat","Kohsan"]
["Hirat","Shindand"]
["Hirat","Fersi"]
["Hirat","Chishti Sharif"]
["Farah","province Center (Farah)"]
["Farah","Pushtrud"]
["Farah","Khak-i-safed"]
["Farah","Qala-i-kah"]
["Farah","Shibkoh"]
["Farah","Bala Buluk"]
["Farah","Anar Dara"]
["Farah","Bakwa"]
["Farah","Lash-i- Juwayn"]
["Farah","Gulistan"]
["Farah","Pur Chaman"]
["Nimroz","province Center (Zaranj)"]
["Nimroz","Kang"]
["Nimroz","Asl-i-chakhansur"]
["Nimroz","Char Burjak"]
["Nimroz","Khashrod"]

{"sheet":"Organization","index":2,"n_rows":72,"n_cols":23,"rows_kept":72,"cut":false,"hidden":false,"merged":[[12,18,12,20],[13,18,13,20],[24,2,24,16],[31,2,31,16],[27,2,27,16],[28,2,28,16],[29,2,29,16],[30,2,30,16],[30,18,30,20],[20,1,20,16],[23,2,23,16],[25,1,25,16],[26,2,26,6],[26,7,26,20],[22,2,22,16],[21,2,21,16],[0,8,0,16],[5,2,5,16],[6,1,6,16],[13,2,13,16],[17,1,17,16],[1,2,1,16],[2,2,2,16],[3,2,3,16],[14,2,14,16],[8,2,8,16],[9,2,9,16],[10,2,10,16],[11,2,11,16],[12,2,12,16],[4,3,4,20],[11,18,11,20],[32,2,32,6],[31,18,31,20],[35,1,35,16],[39,17,39,20],[37,2,37,16],[38,2,38,16],[33,17,33,20],[34,17,34,22],[36,18,36,20],[37,18,37,20],[38,18,38,20],[35,17,35,20],[39,1,39,16],[36,2,36,16],[33,1,33,16],[34,2,34,16],[2,18,2,20],[3,18,3,20],[5,18,5,20],[29,18,29,20],[17,17,17,20],[20,17,20,20],[21,18,21,20],[22,18,22,20],[23,18,23,20],[14,18,14,20],[16,17,16,20],[6,17,6,20],[8,18,8,20],[9,18,9,20],[10,18,10,20],[15,17,15,20],[15,2,15,16],[24,18,24,20],[25,17,25,20],[27,18,27,20],[28,18,28,20],[16,2,16,16],[18,2,18,16],[18,17,18,20],[19,2,19,16],[19,17,19,20]]}
[null,null,"AFGHANISTAN EMERGENCY SHELTER and NON FOOD ITEM CLUSTER 4W",null,null,null,null,null,"For assistance please feel free to call or email: 0791990138/HAIDARI@unhcr.org\n"]
[null,null,"ESNFI PROJECT / ACTIVITY 4W REPORTING SHEET \n(please see the accompanying APC 4W Guidance Note for further clarifications if needed)"]
[null,"1.  Project Title / activity name:"]
[null,"2. Project Code"]
[null,"3. Status"]
[null,"4. Project Description / Objectives"]
[]
[null,"5.  Reporting date (DD/MM/YYYY):"]
[null,"6.  Reporting organisation name:"]
[null,"7.  Implementing organisation name[s]:Use comma to separate more than one organization"]
[null,"8.  Implementing organisation abbreviation:"]
[null,"9.  Implementing in cooperation with / partner(s):"]
[null,"10.  Funding organisation / agency:"]
[null,"11.  Funding organisation abbreviation:"]
[null,"12.  Donor(s) name(s):Use semicolon to separate more than one organization"]
[null,"13. Budget in 2016 [USD]:"]
[null,"14. Total Budget:"]
[]
[null,"15. Project Start date (DD/MM/YYYY):"]
[null,"16. Project End date (DD/MM/YYYY):"]
[]
[null,"18.  Contribution to Cluster HRP Objective[s]:"]
[null,"19.  Alignment to HRP Priorities:"]
[null,"20.  Activity contributes to the Cluster HRM Progress Monitoring Indicator:"]
[null,"21. Activity description [Objective]:"]
[]
[null,"23. Specifically targeted group:"]
[null,"24. # of girls (under 18) directly reached (Automatically Filled from below):",{"$f":"SUM(Q42:Q70)","v":0}]
[null,"25. # of boys (under 18) directly reached (Automatically Filled from below):",{"$f":"SUM(R42:R70)","v":0}]
[null,"26. # of women (over 18) directly reached (Automatically Filled from below):",{"$f":"SUM(S42:S70)","v":0}]
[null,"27. # of men (over 18) directly reached (Automatically Filled from below):",{"$f":"SUM(T42:T70)","v":0}]
[null,"30. Total number of planned [Target] direct beneficiaries:"]
[null,"31. Beneficiaries categories","Communities hosting conflict IDPs, Very Severely Food Insecure, Natural disaster affected (in situ)"]
[]
[null,"32. Further information / specifications / remarks:"]
[]
[null,"33. Contact person name:"]
[null,"34. Contact person email:"]
[null,"35. Contact person phone:"]
[]
[null,"36.  Province Budget in reporting period [USD]:(Please provide the breakdown of the Sum from Question 13 by province)","37A.  Province:(Please select from the drop-down list, after this selection it is possible to select the district)","37B.  District:(Please select province first, then select the district)","38.\nType of incident/Beneficiary","39.\nIf joint distribution, please select (multiple) partners","40.\nPrimary shelter sector of activity:","40A.\nPrimary specific activity type:","Comment to Activity (question 40A)","40C.\n2nd shelter sector of activity (if in combination with primary sector of activity):","40D\n2nd specific activity type (if in combination with primary activity type):","40E.\n3rd shelter sector of activity (if in combination with primary sector of activity):","40F.\n3rd specific activity type (if in combination with primary activity type):","41.\nRelated Referral Network","42.\nCross-sectoral activity; related cluster:","43.\nNumber of HHs assisted:"," 43A # of girls (under 18) directly reached:","43B # of boys (under 18) directly reached:","43C # of women (over 18) directly reached:","43D # of men (over 18) directly reached:","43E. Number of direct beneficiaries:\n(Should be equal to the sum of the 4 previous questions)","43F.\nNumber of indirect beneficiaries:\n(For this reporting period)","Total # of direct beneficiaries in district  - 2015:(The total number of beneficiaries will appear here automatically.)"]
[null,null,null,null,null,null,null,null,null,"","",null,null,null,null,null,null,null,null,null,null,null,{"$f":"SUM(U42:V42)","v":0}]
[null,null,null,null,null,null,null,null,null,null,null,null,null,null,null,null,null,null,null,null,null,null,{"$f":"SUM(U43:V43)","v":0}]
[null,null,null,null,null,null,null,null,null,null,null,null,null,null,null,null,null,null,null,null,null,null,0]
[null,null,null,null,null,null,null,null,null,null,null,null,null,null,null,null,null,null,null,null,null,null,0]
[null,null,null,null,null,null,null,null,null,null,null,null,null,null,null,null,null,null,null,null,null,null,0]
[null,null,null,null,null,null,null,null,null,null,null,null,null,null,null,null,null,null,null,null,null,null,0]
[null,null,null,null,null,null,null,null,null,null,null,null,null,null,null,null,null,null,null,null,null,null,0]
[null,null,null,null,null,null,null,null,null,null,null,null,null,null,null,null,null,null,null,null,null,null,0]
[null,null,null,null,null,null,null,null,null,null,null,null,null,null,null,null,null,null,null,null,null,null,0]
[null,null,null,null,null,null,null,null,null,null,null,null,null,null,null,null,null,null,null,null,null,null,0]
[null,null,null,null,null,null,null,null,null,null,null,null,null,null,null,null,null,null,null,null,null,null,0]
[null,null,null,null,null,null,null,null,null,null,null,null,null,null,null,null,null,null,null,null,null,null,0]
[null,null,null,null,null,null,null,null,null,null,null,null,null,null,null,null,null,null,null,null,null,null,0]
[null,null,null,null,null,null,null,null,null,null,null,null,null,null,null,null,null,null,null,null,null,null,0]
[null,null,null,null,null,null,null,null,null,null,null,null,null,null,null,null,null,null,null,null,null,null,0]
[null,null,null,null,null,null,null,null,null,null,null,null,null,null,null,null,null,null,null,null,null,null,0]
[null,null,null,null,null,null,null,null,null,null,null,null,null,null,null,null,null,null,null,null,null,null,0]
[null,null,null,null,null,null,null,null,null,null,null,null,null,null,null,null,null,null,null,null,null,null,0]
[null,null,null,null,null,null,null,null,null,null,null,null,null,null,null,null,null,null,null,null,null,null,0]
[null,null,null,null,null,null,null,null,null,null,null,null,null,null,null,null,null,null,null,null,null,null,0]
[null,null,null,null,null,null,null,null,null,null,null,null,null,null,null,null,null,null,null,null,null,null,0]
[null,null,null,null,null,null,null,null,null,null,null,null,null,null,null,null,null,null,null,null,null,null,0]
[null,null,null,null,null,null,null,null,null,null,null,null,null,null,null,null,null,null,null,null,null,null,0]
[null,null,null,null,null,null,null,null,null,null,null,null,null,null,null,null,null,null,null,null,null,null,0]
[null,null,null,null,null,null,null,null,null,null,null,null,null,null,null,null,null,null,null,null,null,null,0]
[null,null,null,null,null,null,null,null,null,null,null,null,null,null,null,null,null,null,null,null,null,null,0]
[null,null,null,null,null,null,null,null,null,null,null,null,null,null,null,null,null,null,null,null,null,null,0]
[null,null,null,null,null,null,null,null,null,null,null,null,null,null,null,null,null,null,null,null,null,null,0]
[null,null,null,null,null,null,null,null,null,null,null,null,null,null,null,null,null,null,null,null,null,null,0]
[null,null,null,null,null,null,null,null,null,null,null,null,null,null,null,null,null,null,null,null,null,null,0]
[null,null,null,null,null,null,null,null,null,null,null,null,null,null,null,null,null,null,null,null,null,null,0]

{"sheet":"APC 4W Guidance Note","index":3,"n_rows":47,"n_cols":5,"rows_kept":47,"cut":false,"hidden":true,"merged":[]}
["Q#","Index","Question","Field Type","Description"]
[1,"Q.1","Project Title / activity name:","Text","Please enter here the name of the project for which you are reporting the activities. This name will be used as an identifier of the project, thus you may choose to copy the title from your project document and continue to refer in the future under the same name.\n\nThere is a maximum of 256 characters."]
[2,"Q.2","Project Code","Text","Based on your project documents [proposal], with you donor, or funding organization, or your own organizations filing standards, you will have a unique ID code. \nPlease use the same code here."]
[3,"Q.3","Status","Choose One","Please choose from the dropdown list what is the status of the project you are reporting on.\nPlanning projects - it is understood that all are projects that have secured funding and will start within short time from the reporting time.\nPlanning [subject to funding] - it is understood that are projects that have not secured 100% funding.\nOngoing - it is understood that are all projects that started before or during the reporting period.\nCompleted - it is understood that are all projects that have been successfully completed during the reporting period.\nSuspended - it is understood that are all project that for one reason or another have stopped but not completed [please provide the reasons for suspension in the following field below, together with the description]"]
[4,"Q.4","Project Description / Objectives","Text","Use this field to provide the short narrative of the project [hint: you may use the paragraph from your project proposal - must be less than 1000 characters]."]
[5,"Q.5","Reporting date (DD/MM/YYYY):","Date","Enter the date when you are reporting / filling in this sheet.\nPlease use dd/mm/yyyy format [e.g. 19/04/2015]\n\nPlease note that depending on your computer regional settings, your date may appear differently. To verify correct entry, please look at the Formula Bar in Excel"]
[6,"Q.6","Reporting organization name:","Text","Full name of your organization"]
[7,"Q.7","Implementing organization name[s]:\nUse comma to separate more than one organization","Text","Full name of organization[s] that is implementing the project.\n\nExample: Organization of Human Welfare"]
[8,"Q.8","Implementing organization abbreviation:","Text","Please provide the abbreviation of the organization that is implementing the project.\nThis is the leading implementing organization.\n\nExample: OWH"]
[9,"Q.9","Implementing in cooperation with / partner(s):","Text","If project is being implemented with the help of the partners, please provide their names here. \nIn case there is more than one implementer, please separate the abbreviations by using a semicolon \";\"\n\nExample: Norwegian Refugee Council"]
[10,"Q.10","Funding organization name:","Text","Funding organization and the Donor may not be the same.\nIf the project is being funded by other than your organization, please provide the name here, else copy and paste the name of your organization.\n\nExample: United Nations High Commissioner for Refugees"]
[11,"Q.11","Funding organization abbreviation:","Text","Please enter here the abbreviation of the organization entered in the previous question.\n\nExample: UNHCR"]
[12,"Q.12","Donor(s) name(s):\nUse comma to separate more than one organization","Text","Please provide the name of the donor agency or organization for this project.\n\nExample: European Commission's Humanitarian aid and Civil Protection department [ECHO]"]
[13,"Q.13","Budget in 2015 [USD]:","Number","In numbers, type the amount of SUM of the project / activity budget for the year 2015!"]
[14,"Q.14","Total Budget:","Number","If the project is multi-year, and the budget is larger than the portion for the year 2015, then provide the TOTAL here, else copy and paste from above."]
[15,"Q.15","Project Start date (DD/MM/YYYY):","Date","Enter the date when the project started.\nPlease use dd/mm/yyyy format [e.g. 19/04/2015]"]
[16,"Q.16","Project End date (DD/MM/YYYY):","Date","Enter the date when project completed or is projected to be completed.\nPlease use dd/mm/yyyy format [e.g. 19/04/2015]"]
[17,"Q.18","Contribution to Cluster HRP Objective[s]:","Text","Based on the CHAP Logframe of the ES-NFI Cluster, please select the objective towards your project is contributing.\nIt is possible that you project / activity is not directly supporting, or you not sure about how to proceed. In this case please contact details in Form"]
[18,"Q.19","Alignment to HRP SP Outcome:","Text","Based on the HRP, under the Protection Cluster section, please select the Strategic Priority Outcome towards your project is contributing.\nIt is possible that you project / activity is not directly supporting, or you not sure about how to proceed. In this case please contact details in Form"]
[19,"Q.20","Activity contributes to the Cluster HRP Progress Monitoring Indicator:","Text","Based on the HRP Progress Monitoring, please choose towards which indicator is your project contributing.\nIt is possible that you project / activity is not directly supporting, or you not sure about how to proceed. In this case please contact details in Form."]
[20,"Q.21","Activity description [Objective]:","Text","In cases where the project is not directly aligned with the one of the HRP Objectives or Strategic Priorities, please provide some description here and the objectives of the project."]
[21,"Q.23","Specifically targeted group:","Choose One","If your project / activity is targeting a specific group of beneficiaries within the beneficiary category, please select here the best group that represent them.\nExample: your beneficiary category may be \"Conflict IDPs Newly Displaced (< 12 months displaced)\" AND your specific group may be \"Youth (12-18 years old)\"."]
[22,"Q.24","# of girls (under 18) directly reached:","Number","From the total number of the beneficiaries for the reporting period, how many of them are girls [age group 0 - 17].\nWe are at the end of first half of the 2015, please provide e the cumulative number of reached beneficiaries."]
[23,"Q.25","# of boys (under 18) directly reached:","Number","From the total number of the beneficiaries for the reporting period, how many of them are boys [age group 0 - 17].\nWe are at the end of first half of the 2015, please provide e the cumulative number of reached beneficiaries."]
[24,"Q.26","# of women (over 18) directly reached:","Number","From the total number of the beneficiaries for the reporting period, how many of them are women [age group 18 and older].\nWe are at the end of first half of the 2015, please provide e the cumulative number of reached beneficiaries."]
[25,"Q.27","# of men (over 18) directly reached:","Number","From the total number of the beneficiaries for the reporting period, how many of them are men [age group 18 and older].\nWe are at the end of first half of the 2015, please provide e the cumulative number of reached beneficiaries."]
[26,"Q.30","Total # of planned [Target] direct beneficiaries:","Number","For this project / activity, in the year 2015, what is the target number of direct beneficiaries?\nThis is what the project / activity objective is set when the project started."]
[27,"Q.31","# of Reached direct beneficiaries [Achievement] in this quarter:","Number","For this project / activity, for the reporting period, what is the actual achieved number of direct beneficiaries.\nWe are at the end of first half of the 2015, please provide e the cumulative number of reached beneficiaries."]
[28,"Q.32","Further information / specifications / remarks:","Text","In cases where the project is not counting number of beneficiaries, but providing other form of measurement, [i.e. area cleared from ERW], please provide that information here.\nYou may use this field to provide any other specific information for your project / activity."]
[29,"Q.33","Contact person name:","Text","Name of the contact person for this project / activity."]
[30,"Q.34","Contact person email:","Text","email address of the contact person for this project / activity."]
[31,"Q.35","Contact person phone:","Text","phone number of the contact person for this project / activity."]
[32,"Q.36","Province Budget in this quarter [USD]:\n(Please provide the breakdown of the Sum from question 13 [above] by province)","Number","From the project / activity budget allocated for year 2015, please provide the amount used in the respective province. \nYou need to enter for each province where you are reporting your activity. If your activity is in the same province but more than one district of that province, then you enter the number just once.\nexample:\nBudget for year 2015: $50,000\nBudget - Province - District\n$20,000 - Badakhshan - Argo\n              - Badakhshan - Baharak\n$30,000 - Kunduz          - Kunduz \n              - Kunduz          - Aliabad"]
[33,"Q.37A","Province:\n (Please select from the drop-down list, after this selection it is possible to select the district)","Choose One","Chose the name of the province from the list. In order to enter district, you need to select the province first.\nPlease re-enter on the following rows where you have project activities in more than one district of the same province."]
[34,"Q.37B","District:\n(Please select province first, then select the district)","Choose One","Chose the name of the District where the project activity took place. Please use one row for each district where the activities took place [providing \"7 district\" as input does not help on mapping the activities, we need all district names], in addition it is important that you select the official district which are available in the list. For any other temporary or unofficial district which are not available in the list, please use the under Question 32."]
[35,"Q.38","Cluster sector of activity:","Choose One","Choose the sector [i.e. sub-cluster] under which your project is being implemented.\nIn case your project provides services for more than one sector, you can add them under following questions. Do not add an individual line for each activity if you are targeting the same caseload (to avoid double counting)"]
[36,"Q.38A","Specific primary activity type:","Choose One","Chose the primary activity type for your activity for these beneficiaries\nPlease add individual lines for each caseload"]
[37,"Q.38B","Comment on activity","Text","Comment on activity if requested"]
[38,"Q.38C","Specific 2nd cluster sector activity:","Choose One","Choose the sector [i.e. sub-cluster] under which your project is being implemented.\nIn case your project provides services for more than one sector, you can add them under following questions. Do not add an individual line for each activity if you are targeting the same caseload (to avoid double counting)"]
[39,"Q.38D","Specific 2nd activity type:","Choose One","Chose the 2nd activity type for your activity for these beneficiaries (only if in combination with primary activity)\nPlease add individual lines for each caseload"]
[40,"Q.38E","Specific 3rd cluster sector activity:","Text","Choose the sector [i.e. sub-cluster] under which your project is being implemented.\nIn case your project provides services for more than one sector, you can add them under following questions. Do not add an individual line for each activity if you are targeting the same caseload (to avoid double counting)"]
[41,"Q.38F","Specific 3rd activity type:",null,"Chose the 3rd activity type for your activity for these beneficiaries (only if in combination with primary activity)\nPlease add individual lines for each caseload"]
[42,"Q.39","Related Referral Network","Text","Where applicable, enter the full name of the referral network."]
[43,"Q.40","Cross-sectoral activity; related cluster:","Choose One","If your project is inter-linked with other cluster, please select the correct one here, else choose \"Not applicable\"."]
[44,"Q.41E","# of reached direct beneficiaries:\nFor this reporting quarter","Number","Should be equal to the sum of Q41A + Q41B + Q41C + Q41D (if the gender/age data are at disposal)"]
[45,"Q.41F","# of reached indirect beneficiaries:\nFor this reporting quarter","Number","Most projects Do Not measure indirect beneficiaries, please enter 0.\n\nIf your project measures indirect beneficiaries, please enter that number here.\nFor the definition and the method of calculating, please provide information in the Question 32."]
[46,"Q.42","Total # of reached direct beneficiaries in district  - 2015: (The total number of beneficiaries will appear here automatically.)","Auto-calculated field","Please do not make any input on this field!"]

{"sheet":"Project Sheet","index":4,"n_rows":3,"n_cols":30,"rows_kept":3,"cut":false,"hidden":false,"merged":[]}
[]
["1.  Project Title / activity name:","2. Project Code","3. Status","4. Project Description / Objectives","5.  Reporting date (DD/MM/YYYY):","6.  Reporting organisation name:","7.  Implementing organisation name[s]:Use comma to separate more than one organization","8.  Implementing organisation abbreviation:","9.  Implementing in cooperation with / partner(s):","10.  Funding organisation / agency:","11.  Funding organisation abbreviation:","12.  Donor(s) name(s):Use semicolon to separate more than one organization","13. Budget in 2015 [USD]:","14. Total Budget:","15. Project Start date (DD/MM/YYYY):","16. Project End date (DD/MM/YYYY):","18.  Contribution to Cluster HRP Objective[s]:","19.  Alignment to HRP Priorities:","20.  Activity contributes to the Cluster HRM Progress Monitoring Indicator:","21. Activity description [Objective]:","22. Beneficiaries Category:","24. # of girls (under 18) directly reached:","25. # of boys (under 18) directly reached:","26. # of women (over 18) directly reached:","27. # of men (over 18) directly reached:","30. Total number of planned [Target] direct beneficiaries:","32. Further information / specifications / remarks:","33. Contact person name:","34. Contact person email:","35. Contact person phone:"]
[{"$f":"Organization!$C3","v":0},{"$f":"Organization!$C4","v":0},{"$f":"Organization!$C5","v":0},{"$f":"Organization!$C6","v":0},{"$f":"Organization!$C8","v":"00:00:00"},{"$f":"Organization!$C9","v":0},{"$f":"Organization!$C10","v":0},{"$f":"Organization!$C11","v":0},{"$f":"Organization!$C12","v":0},{"$f":"Organization!$C13","v":0},{"$f":"Organization!$C14","v":0},{"$f":"Organization!$C15","v":0},{"$f":"Organization!$C16","v":0},{"$f":"Organization!$C17","v":0},{"$f":"Organization!$C19","v":"00:00:00"},{"$f":"Organization!$C20","v":"00:00:00"},{"$f":"Organization!$C22","v":0},{"$f":"Organization!$C23","v":0},{"$f":"Organization!$C24","v":0},{"$f":"Organization!$C25","v":0},{"$f":"Organization!$C27","v":0},{"$f":"Organization!$C28","v":0},{"$f":"Organization!$C29","v":0},{"$f":"Organization!$C30","v":0},{"$f":"Organization!$C31","v":0},{"$f":"Organization!$C32","v":0},{"$f":"Organization!$C35","v":0},{"$f":"Organization!$C37","v":0},{"$f":"Organization!$C38","v":0},{"$f":"Organization!$C39","v":0}]

{"sheet":"Activity Sheet","index":5,"n_rows":32,"n_cols":25,"rows_kept":32,"cut":false,"hidden":true,"merged":[]}
[]
["#","1.  Project Title / activity name:","2. Project Code","3. Status","4. Project Description / Objectives","5.  Reporting date (DD/MM/YYYY):","6.  Reporting organisation name:","7.  Implementing organisation name[s]:Use comma to separate more than one organization","8.  Implementing organisation abbreviation:","9.  Implementing in cooperation with / partner(s):","36.  Province Budget in reporting period [USD]:(Please provide the breakdown of the Sum from Question 13 by province)","37A.  Province:(Please select from the drop-down list, after this selection it is possible to select the district)","37B.  District:(Please select province first, then select the district)","38.\nShelter sector of activity:","38A.\nSpecific primary activity type:","Comment to Tertiary Activity (question 38C)","39.\nRelated Referral Network","40.\nCross-sectoral activity; related cluster:"," 41A # of girls (under 18) directly reached:","41B # of boys (under 18) directly reached:","41C # of women (over 18) directly reached:","41D # of men (over 18) directly reached:","41E. Number of direct beneficiaries:\n","41F.\nNumber of indirect beneficiaries:\n(For this reporting period)","Total # of direct beneficiaries in district  - 2015:(The total number of beneficiaries will appear here automatically.)"]
[1,{"$f":"Organization!$C$3","v":0},{"$f":"Organization!$C$4","v":0},{"$f":"Organization!$C$5","v":0},{"$f":"Organization!$C$6","v":0},{"$f":"Organization!$C$8","v":"00:00:00"},{"$f":"Organization!$C$9","v":0},{"$f":"Organization!$C$10","v":0},{"$f":"Organization!$C$11","v":0},{"$f":"Organization!$C$12","v":0},{"$f":"Organization!$B42","v":0},{"$f":"Organization!$C42","v":0},{"$f":"Organization!$D42","v":0},{"$f":"Organization!$G42","v":0},{"$f":"Organization!$H42","v":0},{"$f":"Organization!$I42","v":0},{"$f":"Organization!$N42","v":0},{"$f":"Organization!$O42","v":0},{"$f":"Organization!$Q42","v":0},{"$f":"Organization!$R42","v":0},{"$f":"Organization!$S42","v":0},{"$f":"Organization!$T42","v":0},{"$f":"Organization!$U42","v":0},{"$f":"Organization!$W42","v":0},{"$f":"Organization!$V42","v":0}]
[2,{"$f":"Organization!$C$3","v":0},{"$f":"Organization!$C$4","v":0},{"$f":"Organization!$C$5","v":0},{"$f":"Organization!$C$6","v":0},{"$f":"Organization!$C$8","v":"00:00:00"},{"$f":"Organization!$C$9","v":0},{"$f":"Organization!$C$10","v":0},{"$f":"Organization!$C$11","v":0},{"$f":"Organization!$C$12","v":0},{"$f":"Organization!$B43","v":0},{"$f":"Organization!$C43","v":0},{"$f":"Organization!$D43","v":0},{"$f":"Organization!$G43","v":0},{"$f":"Organization!$H43","v":0},{"$f":"Organization!$I43","v":0},{"$f":"Organization!$N43","v":0},{"$f":"Organization!$O43","v":0},{"$f":"Organization!$Q43","v":0},{"$f":"Organization!$R43","v":0},{"$f":"Organization!$S43","v":0},{"$f":"Organization!$T43","v":0},{"$f":"Organization!$U43","v":0},{"$f":"Organization!$W43","v":0},{"$f":"Organization!$V43","v":0}]
[3,{"$f":"Organization!$C$3","v":0},{"$f":"Organization!$C$4","v":0},{"$f":"Organization!$C$5","v":0},{"$f":"Organization!$C$6","v":0},{"$f":"Organization!$C$8","v":"00:00:00"},{"$f":"Organization!$C$9","v":0},{"$f":"Organization!$C$10","v":0},{"$f":"Organization!$C$11","v":0},{"$f":"Organization!$C$12","v":0},{"$f":"Organization!$B44","v":0},{"$f":"Organization!$C44","v":0},{"$f":"Organization!$D44","v":0},{"$f":"Organization!$G44","v":0},{"$f":"Organization!$H44","v":0},{"$f":"Organization!$I44","v":0},{"$f":"Organization!$N44","v":0},{"$f":"Organization!$O44","v":0},{"$f":"Organization!$Q44","v":0},{"$f":"Organization!$R44","v":0},{"$f":"Organization!$S44","v":0},{"$f":"Organization!$T44","v":0},{"$f":"Organization!$U44","v":0},{"$f":"Organization!$W44","v":0},{"$f":"Organization!$V44","v":0}]
[4,{"$f":"Organization!$C$3","v":0},{"$f":"Organization!$C$4","v":0},{"$f":"Organization!$C$5","v":0},{"$f":"Organization!$C$6","v":0},{"$f":"Organization!$C$8","v":"00:00:00"},{"$f":"Organization!$C$9","v":0},{"$f":"Organization!$C$10","v":0},{"$f":"Organization!$C$11","v":0},{"$f":"Organization!$C$12","v":0},{"$f":"Organization!$B45","v":0},{"$f":"Organization!$C45","v":0},{"$f":"Organization!$D45","v":0},{"$f":"Organization!$G45","v":0},{"$f":"Organization!$H45","v":0},{"$f":"Organization!$I45","v":0},{"$f":"Organization!$N45","v":0},{"$f":"Organization!$O45","v":0},{"$f":"Organization!$Q45","v":0},{"$f":"Organization!$R45","v":0},{"$f":"Organization!$S45","v":0},{"$f":"Organization!$T45","v":0},{"$f":"Organization!$U45","v":0},{"$f":"Organization!$W45","v":0},{"$f":"Organization!$V45","v":0}]
[5,{"$f":"Organization!$C$3","v":0},{"$f":"Organization!$C$4","v":0},{"$f":"Organization!$C$5","v":0},{"$f":"Organization!$C$6","v":0},{"$f":"Organization!$C$8","v":"00:00:00"},{"$f":"Organization!$C$9","v":0},{"$f":"Organization!$C$10","v":0},{"$f":"Organization!$C$11","v":0},{"$f":"Organization!$C$12","v":0},{"$f":"Organization!$B46","v":0},{"$f":"Organization!$C46","v":0},{"$f":"Organization!$D46","v":0},{"$f":"Organization!$G46","v":0},{"$f":"Organization!$H46","v":0},{"$f":"Organization!$I46","v":0},{"$f":"Organization!$N46","v":0},{"$f":"Organization!$O46","v":0},{"$f":"Organization!$Q46","v":0},{"$f":"Organization!$R46","v":0},{"$f":"Organization!$S46","v":0},{"$f":"Organization!$T46","v":0},{"$f":"Organization!$U46","v":0},{"$f":"Organization!$W46","v":0},{"$f":"Organization!$V46","v":0}]
[6,{"$f":"Organization!$C$3","v":0},{"$f":"Organization!$C$4","v":0},{"$f":"Organization!$C$5","v":0},{"$f":"Organization!$C$6","v":0},{"$f":"Organization!$C$8","v":"00:00:00"},{"$f":"Organization!$C$9","v":0},{"$f":"Organization!$C$10","v":0},{"$f":"Organization!$C$11","v":0},{"$f":"Organization!$C$12","v":0},{"$f":"Organization!$B47","v":0},{"$f":"Organization!$C47","v":0},{"$f":"Organization!$D47","v":0},{"$f":"Organization!$G47","v":0},{"$f":"Organization!$H47","v":0},{"$f":"Organization!$I47","v":0},{"$f":"Organization!$N47","v":0},{"$f":"Organization!$O47","v":0},{"$f":"Organization!$Q47","v":0},{"$f":"Organization!$R47","v":0},{"$f":"Organization!$S47","v":0},{"$f":"Organization!$T47","v":0},{"$f":"Organization!$U47","v":0},{"$f":"Organization!$W47","v":0},{"$f":"Organization!$V47","v":0}]
[7,{"$f":"Organization!$C$3","v":0},{"$f":"Organization!$C$4","v":0},{"$f":"Organization!$C$5","v":0},{"$f":"Organization!$C$6","v":0},{"$f":"Organization!$C$8","v":"00:00:00"},{"$f":"Organization!$C$9","v":0},{"$f":"Organization!$C$10","v":0},{"$f":"Organization!$C$11","v":0},{"$f":"Organization!$C$12","v":0},{"$f":"Organization!$B48","v":0},{"$f":"Organization!$C48","v":0},{"$f":"Organization!$D48","v":0},{"$f":"Organization!$G48","v":0},{"$f":"Organization!$H48","v":0},{"$f":"Organization!$I48","v":0},{"$f":"Organization!$N48","v":0},{"$f":"Organization!$O48","v":0},{"$f":"Organization!$Q48","v":0},{"$f":"Organization!$R48","v":0},{"$f":"Organization!$S48","v":0},{"$f":"Organization!$T48","v":0},{"$f":"Organization!$U48","v":0},{"$f":"Organization!$W48","v":0},{"$f":"Organization!$V48","v":0}]
[8,{"$f":"Organization!$C$3","v":0},{"$f":"Organization!$C$4","v":0},{"$f":"Organization!$C$5","v":0},{"$f":"Organization!$C$6","v":0},{"$f":"Organization!$C$8","v":"00:00:00"},{"$f":"Organization!$C$9","v":0},{"$f":"Organization!$C$10","v":0},{"$f":"Organization!$C$11","v":0},{"$f":"Organization!$C$12","v":0},{"$f":"Organization!$B49","v":0},{"$f":"Organization!$C49","v":0},{"$f":"Organization!$D49","v":0},{"$f":"Organization!$G49","v":0},{"$f":"Organization!$H49","v":0},{"$f":"Organization!$I49","v":0},{"$f":"Organization!$N49","v":0},{"$f":"Organization!$O49","v":0},{"$f":"Organization!$Q49","v":0},{"$f":"Organization!$R49","v":0},{"$f":"Organization!$S49","v":0},{"$f":"Organization!$T49","v":0},{"$f":"Organization!$U49","v":0},{"$f":"Organization!$W49","v":0},{"$f":"Organization!$V49","v":0}]
[9,{"$f":"Organization!$C$3","v":0},{"$f":"Organization!$C$4","v":0},{"$f":"Organization!$C$5","v":0},{"$f":"Organization!$C$6","v":0},{"$f":"Organization!$C$8","v":"00:00:00"},{"$f":"Organization!$C$9","v":0},{"$f":"Organization!$C$10","v":0},{"$f":"Organization!$C$11","v":0},{"$f":"Organization!$C$12","v":0},{"$f":"Organization!$B50","v":0},{"$f":"Organization!$C50","v":0},{"$f":"Organization!$D50","v":0},{"$f":"Organization!$G50","v":0},{"$f":"Organization!$H50","v":0},{"$f":"Organization!$I50","v":0},{"$f":"Organization!$N50","v":0},{"$f":"Organization!$O50","v":0},{"$f":"Organization!$Q50","v":0},{"$f":"Organization!$R50","v":0},{"$f":"Organization!$S50","v":0},{"$f":"Organization!$T50","v":0},{"$f":"Organization!$U50","v":0},{"$f":"Organization!$W50","v":0},{"$f":"Organization!$V50","v":0}]
[10,{"$f":"Organization!$C$3","v":0},{"$f":"Organization!$C$4","v":0},{"$f":"Organization!$C$5","v":0},{"$f":"Organization!$C$6","v":0},{"$f":"Organization!$C$8","v":"00:00:00"},{"$f":"Organization!$C$9","v":0},{"$f":"Organization!$C$10","v":0},{"$f":"Organization!$C$11","v":0},{"$f":"Organization!$C$12","v":0},{"$f":"Organization!$B51","v":0},{"$f":"Organization!$C51","v":0},{"$f":"Organization!$D51","v":0},{"$f":"Organization!$G51","v":0},{"$f":"Organization!$H51","v":0},{"$f":"Organization!$I51","v":0},{"$f":"Organization!$N51","v":0},{"$f":"Organization!$O51","v":0},{"$f":"Organization!$Q51","v":0},{"$f":"Organization!$R51","v":0},{"$f":"Organization!$S51","v":0},{"$f":"Organization!$T51","v":0},{"$f":"Organization!$U51","v":0},{"$f":"Organization!$W51","v":0},{"$f":"Organization!$V51","v":0}]
[11,{"$f":"Organization!$C$3","v":0},{"$f":"Organization!$C$4","v":0},{"$f":"Organization!$C$5","v":0},{"$f":"Organization!$C$6","v":0},{"$f":"Organization!$C$8","v":"00:00:00"},{"$f":"Organization!$C$9","v":0},{"$f":"Organization!$C$10","v":0},{"$f":"Organization!$C$11","v":0},{"$f":"Organization!$C$12","v":0},{"$f":"Organization!$B52","v":0},{"$f":"Organization!$C52","v":0},{"$f":"Organization!$D52","v":0},{"$f":"Organization!$G52","v":0},{"$f":"Organization!$H52","v":0},{"$f":"Organization!$I52","v":0},{"$f":"Organization!$N52","v":0},{"$f":"Organization!$O52","v":0},{"$f":"Organization!$Q52","v":0},{"$f":"Organization!$R52","v":0},{"$f":"Organization!$S52","v":0},{"$f":"Organization!$T52","v":0},{"$f":"Organization!$U52","v":0},{"$f":"Organization!$W52","v":0},{"$f":"Organization!$V52","v":0}]
[12,{"$f":"Organization!$C$3","v":0},{"$f":"Organization!$C$4","v":0},{"$f":"Organization!$C$5","v":0},{"$f":"Organization!$C$6","v":0},{"$f":"Organization!$C$8","v":"00:00:00"},{"$f":"Organization!$C$9","v":0},{"$f":"Organization!$C$10","v":0},{"$f":"Organization!$C$11","v":0},{"$f":"Organization!$C$12","v":0},{"$f":"Organization!$B53","v":0},{"$f":"Organization!$C53","v":0},{"$f":"Organization!$D53","v":0},{"$f":"Organization!$G53","v":0},{"$f":"Organization!$H53","v":0},{"$f":"Organization!$I53","v":0},{"$f":"Organization!$N53","v":0},{"$f":"Organization!$O53","v":0},{"$f":"Organization!$Q53","v":0},{"$f":"Organization!$R53","v":0},{"$f":"Organization!$S53","v":0},{"$f":"Organization!$T53","v":0},{"$f":"Organization!$U53","v":0},{"$f":"Organization!$W53","v":0},{"$f":"Organization!$V53","v":0}]
[13,{"$f":"Organization!$C$3","v":0},{"$f":"Organization!$C$4","v":0},{"$f":"Organization!$C$5","v":0},{"$f":"Organization!$C$6","v":0},{"$f":"Organization!$C$8","v":"00:00:00"},{"$f":"Organization!$C$9","v":0},{"$f":"Organization!$C$10","v":0},{"$f":"Organization!$C$11","v":0},{"$f":"Organization!$C$12","v":0},{"$f":"Organization!$B54","v":0},{"$f":"Organization!$C54","v":0},{"$f":"Organization!$D54","v":0},{"$f":"Organization!$G54","v":0},{"$f":"Organization!$H54","v":0},{"$f":"Organization!$I54","v":0},{"$f":"Organization!$N54","v":0},{"$f":"Organization!$O54","v":0},{"$f":"Organization!$Q54","v":0},{"$f":"Organization!$R54","v":0},{"$f":"Organization!$S54","v":0},{"$f":"Organization!$T54","v":0},{"$f":"Organization!$U54","v":0},{"$f":"Organization!$W54","v":0},{"$f":"Organization!$V54","v":0}]
[14,{"$f":"Organization!$C$3","v":0},{"$f":"Organization!$C$4","v":0},{"$f":"Organization!$C$5","v":0},{"$f":"Organization!$C$6","v":0},{"$f":"Organization!$C$8","v":"00:00:00"},{"$f":"Organization!$C$9","v":0},{"$f":"Organization!$C$10","v":0},{"$f":"Organization!$C$11","v":0},{"$f":"Organization!$C$12","v":0},{"$f":"Organization!$B55","v":0},{"$f":"Organization!$C55","v":0},{"$f":"Organization!$D55","v":0},{"$f":"Organization!$G55","v":0},{"$f":"Organization!$H55","v":0},{"$f":"Organization!$I55","v":0},{"$f":"Organization!$N55","v":0},{"$f":"Organization!$O55","v":0},{"$f":"Organization!$Q55","v":0},{"$f":"Organization!$R55","v":0},{"$f":"Organization!$S55","v":0},{"$f":"Organization!$T55","v":0},{"$f":"Organization!$U55","v":0},{"$f":"Organization!$W55","v":0},{"$f":"Organization!$V55","v":0}]
[15,{"$f":"Organization!$C$3","v":0},{"$f":"Organization!$C$4","v":0},{"$f":"Organization!$C$5","v":0},{"$f":"Organization!$C$6","v":0},{"$f":"Organization!$C$8","v":"00:00:00"},{"$f":"Organization!$C$9","v":0},{"$f":"Organization!$C$10","v":0},{"$f":"Organization!$C$11","v":0},{"$f":"Organization!$C$12","v":0},{"$f":"Organization!$B56","v":0},{"$f":"Organization!$C56","v":0},{"$f":"Organization!$D56","v":0},{"$f":"Organization!$G56","v":0},{"$f":"Organization!$H56","v":0},{"$f":"Organization!$I56","v":0},{"$f":"Organization!$N56","v":0},{"$f":"Organization!$O56","v":0},{"$f":"Organization!$Q56","v":0},{"$f":"Organization!$R56","v":0},{"$f":"Organization!$S56","v":0},{"$f":"Organization!$T56","v":0},{"$f":"Organization!$U56","v":0},{"$f":"Organization!$W56","v":0},{"$f":"Organization!$V56","v":0}]
[16,{"$f":"Organization!$C$3","v":0},{"$f":"Organization!$C$4","v":0},{"$f":"Organization!$C$5","v":0},{"$f":"Organization!$C$6","v":0},{"$f":"Organization!$C$8","v":"00:00:00"},{"$f":"Organization!$C$9","v":0},{"$f":"Organization!$C$10","v":0},{"$f":"Organization!$C$11","v":0},{"$f":"Organization!$C$12","v":0},{"$f":"Organization!$B57","v":0},{"$f":"Organization!$C57","v":0},{"$f":"Organization!$D57","v":0},{"$f":"Organization!$G57","v":0},{"$f":"Organization!$H57","v":0},{"$f":"Organization!$I57","v":0},{"$f":"Organization!$N57","v":0},{"$f":"Organization!$O57","v":0},{"$f":"Organization!$Q57","v":0},{"$f":"Organization!$R57","v":0},{"$f":"Organization!$S57","v":0},{"$f":"Organization!$T57","v":0},{"$f":"Organization!$U57","v":0},{"$f":"Organization!$W57","v":0},{"$f":"Organization!$V57","v":0}]
[17,{"$f":"Organization!$C$3","v":0},{"$f":"Organization!$C$4","v":0},{"$f":"Organization!$C$5","v":0},{"$f":"Organization!$C$6","v":0},{"$f":"Organization!$C$8","v":"00:00:00"},{"$f":"Organization!$C$9","v":0},{"$f":"Organization!$C$10","v":0},{"$f":"Organization!$C$11","v":0},{"$f":"Organization!$C$12","v":0},{"$f":"Organization!$B58","v":0},{"$f":"Organization!$C58","v":0},{"$f":"Organization!$D58","v":0},{"$f":"Organization!$G58","v":0},{"$f":"Organization!$H58","v":0},{"$f":"Organization!$I58","v":0},{"$f":"Organization!$N58","v":0},{"$f":"Organization!$O58","v":0},{"$f":"Organization!$Q58","v":0},{"$f":"Organization!$R58","v":0},{"$f":"Organization!$S58","v":0},{"$f":"Organization!$T58","v":0},{"$f":"Organization!$U58","v":0},{"$f":"Organization!$W58","v":0},{"$f":"Organization!$V58","v":0}]
[18,{"$f":"Organization!$C$3","v":0},{"$f":"Organization!$C$4","v":0},{"$f":"Organization!$C$5","v":0},{"$f":"Organization!$C$6","v":0},{"$f":"Organization!$C$8","v":"00:00:00"},{"$f":"Organization!$C$9","v":0},{"$f":"Organization!$C$10","v":0},{"$f":"Organization!$C$11","v":0},{"$f":"Organization!$C$12","v":0},{"$f":"Organization!$B59","v":0},{"$f":"Organization!$C59","v":0},{"$f":"Organization!$D59","v":0},{"$f":"Organization!$G59","v":0},{"$f":"Organization!$H59","v":0},{"$f":"Organization!$I59","v":0},{"$f":"Organization!$N59","v":0},{"$f":"Organization!$O59","v":0},{"$f":"Organization!$Q59","v":0},{"$f":"Organization!$R59","v":0},{"$f":"Organization!$S59","v":0},{"$f":"Organization!$T59","v":0},{"$f":"Organization!$U59","v":0},{"$f":"Organization!$W59","v":0},{"$f":"Organization!$V59","v":0}]
[19,{"$f":"Organization!$C$3","v":0},{"$f":"Organization!$C$4","v":0},{"$f":"Organization!$C$5","v":0},{"$f":"Organization!$C$6","v":0},{"$f":"Organization!$C$8","v":"00:00:00"},{"$f":"Organization!$C$9","v":0},{"$f":"Organization!$C$10","v":0},{"$f":"Organization!$C$11","v":0},{"$f":"Organization!$C$12","v":0},{"$f":"Organization!$B60","v":0},{"$f":"Organization!$C60","v":0},{"$f":"Organization!$D60","v":0},{"$f":"Organization!$G60","v":0},{"$f":"Organization!$H60","v":0},{"$f":"Organization!$I60","v":0},{"$f":"Organization!$N60","v":0},{"$f":"Organization!$O60","v":0},{"$f":"Organization!$Q60","v":0},{"$f":"Organization!$R60","v":0},{"$f":"Organization!$S60","v":0},{"$f":"Organization!$T60","v":0},{"$f":"Organization!$U60","v":0},{"$f":"Organization!$W60","v":0},{"$f":"Organization!$V60","v":0}]
[20,{"$f":"Organization!$C$3","v":0},{"$f":"Organization!$C$4","v":0},{"$f":"Organization!$C$5","v":0},{"$f":"Organization!$C$6","v":0},{"$f":"Organization!$C$8","v":"00:00:00"},{"$f":"Organization!$C$9","v":0},{"$f":"Organization!$C$10","v":0},{"$f":"Organization!$C$11","v":0},{"$f":"Organization!$C$12","v":0},{"$f":"Organization!$B61","v":0},{"$f":"Organization!$C61","v":0},{"$f":"Organization!$D61","v":0},{"$f":"Organization!$G61","v":0},{"$f":"Organization!$H61","v":0},{"$f":"Organization!$I61","v":0},{"$f":"Organization!$N61","v":0},{"$f":"Organization!$O61","v":0},{"$f":"Organization!$Q61","v":0},{"$f":"Organization!$R61","v":0},{"$f":"Organization!$S61","v":0},{"$f":"Organization!$T61","v":0},{"$f":"Organization!$U61","v":0},{"$f":"Organization!$W61","v":0},{"$f":"Organization!$V61","v":0}]
[21,{"$f":"Organization!$C$3","v":0},{"$f":"Organization!$C$4","v":0},{"$f":"Organization!$C$5","v":0},{"$f":"Organization!$C$6","v":0},{"$f":"Organization!$C$8","v":"00:00:00"},{"$f":"Organization!$C$9","v":0},{"$f":"Organization!$C$10","v":0},{"$f":"Organization!$C$11","v":0},{"$f":"Organization!$C$12","v":0},{"$f":"Organization!$B62","v":0},{"$f":"Organization!$C62","v":0},{"$f":"Organization!$D62","v":0},{"$f":"Organization!$G62","v":0},{"$f":"Organization!$H62","v":0},{"$f":"Organization!$I62","v":0},{"$f":"Organization!$N62","v":0},{"$f":"Organization!$O62","v":0},{"$f":"Organization!$Q62","v":0},{"$f":"Organization!$R62","v":0},{"$f":"Organization!$S62","v":0},{"$f":"Organization!$T62","v":0},{"$f":"Organization!$U62","v":0},{"$f":"Organization!$W62","v":0},{"$f":"Organization!$V62","v":0}]
[22,{"$f":"Organization!$C$3","v":0},{"$f":"Organization!$C$4","v":0},{"$f":"Organization!$C$5","v":0},{"$f":"Organization!$C$6","v":0},{"$f":"Organization!$C$8","v":"00:00:00"},{"$f":"Organization!$C$9","v":0},{"$f":"Organization!$C$10","v":0},{"$f":"Organization!$C$11","v":0},{"$f":"Organization!$C$12","v":0},{"$f":"Organization!$B63","v":0},{"$f":"Organization!$C63","v":0},{"$f":"Organization!$D63","v":0},{"$f":"Organization!$G63","v":0},{"$f":"Organization!$H63","v":0},{"$f":"Organization!$I63","v":0},{"$f":"Organization!$N63","v":0},{"$f":"Organization!$O63","v":0},{"$f":"Organization!$Q63","v":0},{"$f":"Organization!$R63","v":0},{"$f":"Organization!$S63","v":0},{"$f":"Organization!$T63","v":0},{"$f":"Organization!$U63","v":0},{"$f":"Organization!$W63","v":0},{"$f":"Organization!$V63","v":0}]
[23,{"$f":"Organization!$C$3","v":0},{"$f":"Organization!$C$4","v":0},{"$f":"Organization!$C$5","v":0},{"$f":"Organization!$C$6","v":0},{"$f":"Organization!$C$8","v":"00:00:00"},{"$f":"Organization!$C$9","v":0},{"$f":"Organization!$C$10","v":0},{"$f":"Organization!$C$11","v":0},{"$f":"Organization!$C$12","v":0},{"$f":"Organization!$B64","v":0},{"$f":"Organization!$C64","v":0},{"$f":"Organization!$D64","v":0},{"$f":"Organization!$G64","v":0},{"$f":"Organization!$H64","v":0},{"$f":"Organization!$I64","v":0},{"$f":"Organization!$N64","v":0},{"$f":"Organization!$O64","v":0},{"$f":"Organization!$Q64","v":0},{"$f":"Organization!$R64","v":0},{"$f":"Organization!$S64","v":0},{"$f":"Organization!$T64","v":0},{"$f":"Organization!$U64","v":0},{"$f":"Organization!$W64","v":0},{"$f":"Organization!$V64","v":0}]
[24,{"$f":"Organization!$C$3","v":0},{"$f":"Organization!$C$4","v":0},{"$f":"Organization!$C$5","v":0},{"$f":"Organization!$C$6","v":0},{"$f":"Organization!$C$8","v":"00:00:00"},{"$f":"Organization!$C$9","v":0},{"$f":"Organization!$C$10","v":0},{"$f":"Organization!$C$11","v":0},{"$f":"Organization!$C$12","v":0},{"$f":"Organization!$B65","v":0},{"$f":"Organization!$C65","v":0},{"$f":"Organization!$D65","v":0},{"$f":"Organization!$G65","v":0},{"$f":"Organization!$H65","v":0},{"$f":"Organization!$I65","v":0},{"$f":"Organization!$N65","v":0},{"$f":"Organization!$O65","v":0},{"$f":"Organization!$Q65","v":0},{"$f":"Organization!$R65","v":0},{"$f":"Organization!$S65","v":0},{"$f":"Organization!$T65","v":0},{"$f":"Organization!$U65","v":0},{"$f":"Organization!$W65","v":0},{"$f":"Organization!$V65","v":0}]
[25,{"$f":"Organization!$C$3","v":0},{"$f":"Organization!$C$4","v":0},{"$f":"Organization!$C$5","v":0},{"$f":"Organization!$C$6","v":0},{"$f":"Organization!$C$8","v":"00:00:00"},{"$f":"Organization!$C$9","v":0},{"$f":"Organization!$C$10","v":0},{"$f":"Organization!$C$11","v":0},{"$f":"Organization!$C$12","v":0},{"$f":"Organization!$B66","v":0},{"$f":"Organization!$C66","v":0},{"$f":"Organization!$D66","v":0},{"$f":"Organization!$G66","v":0},{"$f":"Organization!$H66","v":0},{"$f":"Organization!$I66","v":0},{"$f":"Organization!$N66","v":0},{"$f":"Organization!$O66","v":0},{"$f":"Organization!$Q66","v":0},{"$f":"Organization!$R66","v":0},{"$f":"Organization!$S66","v":0},{"$f":"Organization!$T66","v":0},{"$f":"Organization!$U66","v":0},{"$f":"Organization!$W66","v":0},{"$f":"Organization!$V66","v":0}]
[26,{"$f":"Organization!$C$3","v":0},{"$f":"Organization!$C$4","v":0},{"$f":"Organization!$C$5","v":0},{"$f":"Organization!$C$6","v":0},{"$f":"Organization!$C$8","v":"00:00:00"},{"$f":"Organization!$C$9","v":0},{"$f":"Organization!$C$10","v":0},{"$f":"Organization!$C$11","v":0},{"$f":"Organization!$C$12","v":0},{"$f":"Organization!$B67","v":0},{"$f":"Organization!$C67","v":0},{"$f":"Organization!$D67","v":0},{"$f":"Organization!$G67","v":0},{"$f":"Organization!$H67","v":0},{"$f":"Organization!$I67","v":0},{"$f":"Organization!$N67","v":0},{"$f":"Organization!$O67","v":0},{"$f":"Organization!$Q67","v":0},{"$f":"Organization!$R67","v":0},{"$f":"Organization!$S67","v":0},{"$f":"Organization!$T67","v":0},{"$f":"Organization!$U67","v":0},{"$f":"Organization!$W67","v":0},{"$f":"Organization!$V67","v":0}]
[27,{"$f":"Organization!$C$3","v":0},{"$f":"Organization!$C$4","v":0},{"$f":"Organization!$C$5","v":0},{"$f":"Organization!$C$6","v":0},{"$f":"Organization!$C$8","v":"00:00:00"},{"$f":"Organization!$C$9","v":0},{"$f":"Organization!$C$10","v":0},{"$f":"Organization!$C$11","v":0},{"$f":"Organization!$C$12","v":0},{"$f":"Organization!$B68","v":0},{"$f":"Organization!$C68","v":0},{"$f":"Organization!$D68","v":0},{"$f":"Organization!$G68","v":0},{"$f":"Organization!$H68","v":0},{"$f":"Organization!$I68","v":0},{"$f":"Organization!$N68","v":0},{"$f":"Organization!$O68","v":0},{"$f":"Organization!$Q68","v":0},{"$f":"Organization!$R68","v":0},{"$f":"Organization!$S68","v":0},{"$f":"Organization!$T68","v":0},{"$f":"Organization!$U68","v":0},{"$f":"Organization!$W68","v":0},{"$f":"Organization!$V68","v":0}]
[28,{"$f":"Organization!$C$3","v":0},{"$f":"Organization!$C$4","v":0},{"$f":"Organization!$C$5","v":0},{"$f":"Organization!$C$6","v":0},{"$f":"Organization!$C$8","v":"00:00:00"},{"$f":"Organization!$C$9","v":0},{"$f":"Organization!$C$10","v":0},{"$f":"Organization!$C$11","v":0},{"$f":"Organization!$C$12","v":0},{"$f":"Organization!$B69","v":0},{"$f":"Organization!$C69","v":0},{"$f":"Organization!$D69","v":0},{"$f":"Organization!$G69","v":0},{"$f":"Organization!$H69","v":0},{"$f":"Organization!$I69","v":0},{"$f":"Organization!$N69","v":0},{"$f":"Organization!$O69","v":0},{"$f":"Organization!$Q69","v":0},{"$f":"Organization!$R69","v":0},{"$f":"Organization!$S69","v":0},{"$f":"Organization!$T69","v":0},{"$f":"Organization!$U69","v":0},{"$f":"Organization!$W69","v":0},{"$f":"Organization!$V69","v":0}]
[29,{"$f":"Organization!$C$3","v":0},{"$f":"Organization!$C$4","v":0},{"$f":"Organization!$C$5","v":0},{"$f":"Organization!$C$6","v":0},{"$f":"Organization!$C$8","v":"00:00:00"},{"$f":"Organization!$C$9","v":0},{"$f":"Organization!$C$10","v":0},{"$f":"Organization!$C$11","v":0},{"$f":"Organization!$C$12","v":0},{"$f":"Organization!$B70","v":0},{"$f":"Organization!$C70","v":0},{"$f":"Organization!$D70","v":0},{"$f":"Organization!$G70","v":0},{"$f":"Organization!$H70","v":0},{"$f":"Organization!$I70","v":0},{"$f":"Organization!$N70","v":0},{"$f":"Organization!$O70","v":0},{"$f":"Organization!$Q70","v":0},{"$f":"Organization!$R70","v":0},{"$f":"Organization!$S70","v":0},{"$f":"Organization!$T70","v":0},{"$f":"Organization!$U70","v":0},{"$f":"Organization!$W70","v":0},{"$f":"Organization!$V70","v":0}]
[30,{"$f":"Organization!$C$3","v":0},{"$f":"Organization!$C$4","v":0},{"$f":"Organization!$C$5","v":0},{"$f":"Organization!$C$6","v":0},{"$f":"Organization!$C$8","v":"00:00:00"},{"$f":"Organization!$C$9","v":0},{"$f":"Organization!$C$10","v":0},{"$f":"Organization!$C$11","v":0},{"$f":"Organization!$C$12","v":0},{"$f":"Organization!$B71","v":0},{"$f":"Organization!$C71","v":0},{"$f":"Organization!$D71","v":0},{"$f":"Organization!$G71","v":0},{"$f":"Organization!$H71","v":0},{"$f":"Organization!$I71","v":0},{"$f":"Organization!$N71","v":0},{"$f":"Organization!$O71","v":0},{"$f":"Organization!$Q71","v":0},{"$f":"Organization!$R71","v":0},{"$f":"Organization!$S71","v":0},{"$f":"Organization!$T71","v":0},{"$f":"Organization!$U71","v":0},{"$f":"Organization!$W71","v":0},{"$f":"Organization!$V71","v":0}]